fUST/lending_fUST_20250422
["ID","MTS","AMOUNT","RATE_DAILY","PERIOD"]
[358627934,1745319052467,-151.0,0.00023835,7]
[358627935,1745319052478,-500.0,0.00023835,2]
[358627936,1745319052488,-151.0,0.00023835,7]
[358627937,1745319052498,-151.0,0.00023835,7]
[358627938,1745319052508,-500.0,0.00023835,2]
[358627939,1745319052518,-462.17080485,0.00023835,2]
[358627940,1745319052528,-500.0,0.00023835,2]
[358627941,1745319052538,-1251.934869,0.00023835,2]
[358627942,1745319052548,-500.0,0.00023835,2]
[358627943,1745319052558,-500.0,0.00023835,2]
[358627944,1745319052568,-500.0,0.00023835,2]
[358627945,1745319052578,-500.0,0.00023835,2]
[358627946,1745319052588,-706.5,0.00023835,2]
[358627947,1745319052599,-909.38,0.00023835,2]
[358627948,1745319052609,-808.1,0.00023835,2]
[358627949,1745319052619,-500.0,0.00023835,2]
[358627950,1745319052630,-500.0,0.00023835,2]
[358627951,1745319052639,-278.19,0.00023835,2]
[358627952,1745319052649,-500.0,0.00023835,2]
[358627953,1745319052659,-880.34,0.00023835,2]
[358627954,1745319052669,-177.15,0.00023835,2]
[358627955,1745319052679,-500.0,0.00023835,2]
[358627956,1745319052689,-1251.51,0.00023835,2]
[358627957,1745319052698,-500.0,0.00023835,2]
[358627958,1745319052708,-729.8,0.00023835,2]
[358627959,1745319052719,-541.04,0.00023835,2]
[358627960,1745319052729,-500.0,0.00023835,2]
[358627961,1745319052739,-319.0,0.00023835,3]
[358627962,1745319052749,-359.0,0.00023835,3]
[358627963,1745319052759,-319.0,0.00023835,3]
[358627964,1745319052768,-359.0,0.00023835,3]
[358627965,1745319052779,-319.0,0.00023835,3]
[358627966,1745319052789,-359.0,0.00023835,3]
[358627967,1745319052800,-359.0,0.00023835,3]
[358627968,1745319052810,-319.0,0.00023835,3]
[358627969,1745319052819,-359.0,0.00023835,3]
[358627970,1745319052832,-319.0,0.00023835,3]
[358627971,1745319052845,-359.0,0.00023835,3]
[358627972,1745319052855,-319.0,0.00023835,3]
[358627973,1745319052864,-503.71455614,0.00023835,3]
[358627974,1745319052874,-319.0,0.00023835,3]
[358627975,1745319052884,-895.84,0.00023835,2]
[358627976,1745319052894,-319.0,0.00023835,3]
[358627977,1745319052903,-319.0,0.00023835,3]
[358627978,1745319052915,-319.0,0.00023835,3]
[358627979,1745319052926,-319.0,0.00023835,3]
[358627980,1745319052935,-319.0,0.00023835,3]
[358627981,1745319052945,-165.05086267,0.00023835,3]
[358627982,1745319052954,-500.0,0.00023835,2]
[358627983,1745319052964,-500.0,0.00023835,2]
[358627984,1745319052974,-500.0,0.00023835,2]
[358627985,1745319052984,-500.0,0.00023835,2]
[358627986,1745319052994,-500.0,0.00023835,2]
[358627987,1745319053005,-500.0,0.00023835,2]
[358627988,1745319053015,-500.0,0.00023835,2]
[358627989,1745319053025,-500.0,0.00023835,2]
[358627990,1745319053035,-500.0,0.00023835,2]
[358627991,1745319053045,-667.67,0.00023835,2]
[358627992,1745319053055,-500.0,0.00023835,2]
[358627993,1745319053064,-1815.99,0.00023835,2]
[358627994,1745319053074,-773.77,0.00023835,2]
[358627995,1745319053084,-500.0,0.00023835,2]
[358627996,1745319053093,-500.0,0.00023835,2]
[358627997,1745319053103,-500.0,0.00023835,2]
[358627998,1745319053113,-4119.16,0.00023835,2]
[358627999,1745319053123,-500.0,0.00023835,2]
[358628000,1745319053133,-500.0,0.00023835,2]
[358628001,1745319053142,-686.89,0.00023835,2]
[358628002,1745319053152,-553.58,0.00023835,2]
[358628003,1745319053162,-500.0,0.00023835,2]
[358628004,1745319053173,-500.0,0.00023835,2]
[358628005,1745319053184,-500.0,0.00023835,2]
[358628006,1745319053194,-500.0,0.00023835,2]
[358628007,1745319053204,-384.20423523,0.00023835,2]
[358628008,1745319053214,-500.0,0.00023835,2]
[358628009,1745319053225,-561.78,0.00023835,2]
[358628010,1745319053235,-500.0,0.00023835,2]
[358628011,1745319053245,-12741.58,0.00023835,2]
[358628012,1745319053255,-500.0,0.00023835,2]
[358628013,1745319053266,-862.68,0.00023835,2]
[358628014,1745319053277,-4045.23,0.00023835,2]
[358628015,1745319053286,-643.7,0.00023835,2]
[358628016,1745319053296,-395.16758141,0.00023835,2]
[358628017,1745319053306,-500.0,0.00023835,2]
[358628018,1745319053317,-423.32,0.00023835,2]
[358628019,1745319053327,-500.0,0.00023835,2]
[358628020,1745319053337,-756.19,0.00023835,2]
[358628021,1745319053347,-500.0,0.00023835,2]
[358628022,1745319053357,-500.0,0.00023835,2]
[358628023,1745319053366,-500.0,0.00023835,2]
[358628024,1745319053376,-500.0,0.00023835,2]
[358628025,1745319053386,-500.0,0.00023835,2]
[358628026,1745319053396,-500.0,0.00023835,2]
[358628027,1745319053407,-800.34,0.00023835,2]
[358628028,1745319053416,-500.0,0.00023835,2]
[358628029,1745319053426,-500.0,0.00023835,2]
[358628030,1745319053438,-601.33,0.00023835,2]
[358628031,1745319053448,-2076.86,0.00023835,2]
[358628032,1745319053459,-683.13,0.00023835,2]
[358628033,1745319053469,-500.0,0.00023835,2]
[358628034,1745319053479,-500.0,0.00023835,2]
[358628035,1745319053488,-808.24,0.00023835,2]
[358628036,1745319053498,-575.63,0.00023835,2]
[358628037,1745319053507,-500.0,0.00023835,2]
[358628038,1745319053517,-3747.81,0.00023835,2]
[358628039,1745319053528,-2166.03,0.00023835,2]
[358628040,1745319053538,-639.58,0.00023835,2]
[358628041,1745319053548,-7157.09,0.00023835,2]
[358628042,1745319053558,-500.0,0.00023835,2]
[358628043,1745319053568,-518.97,0.00023835,2]
[358628044,1745319053579,-500.0,0.00023835,2]
[358628045,1745319053589,-718.58,0.00023835,2]
[358628046,1745319053599,-753.89,0.00023835,2]
[358628047,1745319053609,-840.59,0.00023835,2]
[358628048,1745319053619,-1092.14,0.00023835,2]
[358628049,1745319053629,-500.0,0.00023835,2]
[358628050,1745319053639,-1418.59,0.00023835,2]
[358628051,1745319053649,-917.88,0.00023835,2]
[358628052,1745319053659,-537.91,0.00023835,2]
[358628053,1745319053668,-770.62,0.00023835,2]
[358628054,1745319053688,-2319.14,0.00023835,2]
[358628055,1745319053698,-733.11,0.00023835,2]
[358628056,1745319053708,-669.19,0.00023835,2]
[358628057,1745319053718,-4855.79,0.00023835,2]
[358628058,1745319053728,-500.0,0.00023835,2]
[358628059,1745319053738,-500.0,0.00023835,2]
[358628060,1745319053748,-359.0,0.00023835,3]
[358628061,1745319053758,-319.0,0.00023835,3]
[358628062,1745319053768,-536.9,0.00023835,2]
[358628063,1745319053778,-303.0,0.000239,2]
[358628064,1745319053788,-1221.0,0.00023928,2]
[358628065,1745319053798,-9702.0,0.00024,2]
[358628066,1745319053808,-1675.02439174,0.00024,2]
[358628067,1745319053819,-1520.58464235,0.00024072,5]
[358628068,1745319053828,-192.31,0.00024109,2]
[358628069,1745319053838,-500.0,0.00024109,2]
[358628070,1745319053848,-500.0,0.00024109,2]
[358628071,1745319053858,-500.0,0.00024109,2]
[358628072,1745319053868,-500.0,0.00024109,2]
[358628073,1745319053877,-500.0,0.00024109,2]
[358628074,1745319053887,-500.0,0.00024109,2]
[358628075,1745319053897,-151.0,0.00024109,7]
[358628076,1745319053907,-706.5,0.00024109,2]
[358628077,1745319053917,-909.38,0.00024109,2]
[358628078,1745319053927,-808.1,0.00024109,2]
[358628079,1745319053937,-500.0,0.00024109,2]
[358628080,1745319053947,-500.0,0.00024109,2]
[358628081,1745319053957,-405.66297368,0.00024109,2]
[358628082,1745319053966,-151.0,0.00024109,7]
[358628083,1745319053977,-880.34,0.00024109,2]
[358628084,1745319053987,-500.0,0.00024109,2]
[358628085,1745319053997,-1251.51,0.00024109,2]
[358628086,1745319054008,-500.0,0.00024109,2]
[358628087,1745319054017,-729.8,0.00024109,2]
[358628088,1745319054027,-500.0,0.00024109,2]
[358628089,1745319054037,-151.0,0.00024109,7]
[358628090,1745319054048,-895.84,0.00024109,2]
[358628091,1745319054057,-292.55469591,0.00024109,2]
[358628092,1745319054067,-500.0,0.00024109,2]
[358628093,1745319054076,-385.68042639,0.00024109,2]
[358628094,1745319054086,-509.55677359,0.00024109,2]
[358628095,1745319054096,-500.0,0.00024109,2]
[358628096,1745319054106,-582.69967538,0.00024109,2]
[358628097,1745319054116,-609.93836514,0.00024109,2]
[358628098,1745319054126,-500.0,0.00024109,2]
[358628099,1745319054136,-500.0,0.00024109,2]
[358628100,1745319054246,-667.67,0.00024109,2]
[358628101,1745319054259,-500.0,0.00024109,2]
[358628102,1745319054269,-1815.99,0.00024109,2]
[358628103,1745319054279,-773.77,0.00024109,2]
[358628104,1745319054290,-500.0,0.00024109,2]
[358628105,1745319054300,-500.0,0.00024109,2]
[358628106,1745319054309,-500.0,0.00024109,2]
[358628107,1745319054319,-4119.16,0.00024109,2]
[358628108,1745319054329,-600.01,0.00024109,2]
[358628109,1745319054340,-500.0,0.00024109,2]
[358628110,1745319054349,-686.89,0.00024109,2]
[358628111,1745319054359,-553.58,0.00024109,2]
[358628112,1745319054369,-185.462413,0.00024109,2]
[358628113,1745319054380,-500.0,0.00024109,2]
[358628114,1745319054390,-185.462413,0.00024109,2]
[358628115,1745319054401,-500.0,0.00024109,2]
[358628116,1745319054411,-500.0,0.00024109,2]
[358628117,1745319054420,-500.0,0.00024109,2]
[358628118,1745319054430,-151.0,0.00024109,7]
[358628119,1745319054439,-500.0,0.00024109,2]
[358628120,1745319054449,-561.78,0.00024109,2]
[358628121,1745319054459,-500.0,0.00024109,2]
[358628122,1745319054469,-12741.58,0.00024109,2]
[358628123,1745319054479,-500.0,0.00024109,2]
[358628124,1745319054488,-862.68,0.00024109,2]
[358628125,1745319054498,-4045.23,0.00024109,2]
[358628126,1745319054508,-643.7,0.00024109,2]
[358628127,1745319054519,-500.0,0.00024109,2]
[358628128,1745319054529,-500.0,0.00024109,2]
[358628129,1745319054539,-756.19,0.00024109,2]
[358628130,1745319054549,-189.49,0.00024109,2]
[358628131,1745319054558,-500.0,0.00024109,2]
[358628132,1745319054568,-500.0,0.00024109,2]
[358628133,1745319054579,-500.0,0.00024109,2]
[358628134,1745319054589,-500.0,0.00024109,2]
[358628135,1745319054599,-500.0,0.00024109,2]
[358628136,1745319054608,-800.34,0.00024109,2]
[358628137,1745319054618,-195.28,0.00024109,2]
[358628138,1745319054627,-500.0,0.00024109,2]
[358628139,1745319054638,-151.0,0.00024109,7]
[358628140,1745319054648,-601.33,0.00024109,2]
[358628141,1745319054658,-2076.86,0.00024109,2]
[358628142,1745319054667,-683.13,0.00024109,2]
[358628143,1745319054677,-500.0,0.00024109,2]
[358628144,1745319054687,-500.0,0.00024109,2]
[358628145,1745319054697,-808.24,0.00024109,2]
[358628146,1745319054706,-575.63,0.00024109,2]
[358628147,1745319054716,-500.0,0.00024109,2]
[358628148,1745319054726,-3747.81,0.00024109,2]
[358628149,1745319054736,-2166.03,0.00024109,2]
[358628150,1745319054746,-639.58,0.00024109,2]
[358628151,1745319054755,-7157.09,0.00024109,2]
[358628152,1745319054765,-500.0,0.00024109,2]
[358628153,1745319054775,-518.97,0.00024109,2]
[358628154,1745319054785,-500.0,0.00024109,2]
[358628155,1745319054794,-718.58,0.00024109,2]
[358628156,1745319054803,-753.89,0.00024109,2]
[358628157,1745319054813,-840.59,0.00024109,2]
[358628158,1745319054823,-969.61,0.00024109,2]
[358628159,1745319054833,-1092.14,0.00024109,2]
[358628160,1745319054843,-969.61,0.00024109,2]
[358628161,1745319054854,-969.61,0.00024109,2]
[358628162,1745319054863,-969.61,0.00024109,2]
[358628163,1745319054873,-969.61,0.00024109,2]
[358628164,1745319054883,-969.61,0.00024109,2]
[358628165,1745319054893,-969.61,0.00024109,2]
[358628166,1745319054902,-500.0,0.00024109,2]
[358628167,1745319054912,-969.61,0.00024109,2]
[358628168,1745319054922,-969.61,0.00024109,2]
[358628169,1745319054932,-1418.59,0.00024109,2]
[358628170,1745319054942,-917.88,0.00024109,2]
[358628171,1745319054951,-537.91,0.00024109,2]
[358628172,1745319054960,-770.62,0.00024109,2]
[358628173,1745319054970,-2319.14,0.00024109,2]
[358628174,1745319054979,-733.11,0.00024109,2]
[358628175,1745319054989,-669.19,0.00024109,2]
[358628176,1745319054998,-4855.79,0.00024109,2]
[358628177,1745319055009,-500.0,0.00024109,2]
[358628178,1745319055019,-344.84256069,0.00024109,2]
[358628179,1745319055029,-536.9,0.00024109,2]
[358628180,1745319055040,-500.0,0.0002411,2]
[358628181,1745319055050,-302.53764303,0.0002411,2]
[358628182,1745319055060,-600.0,0.00024316,2]
[358628183,1745319055069,-500.000001,0.0002435,2]
[358628184,1745319055079,-151.0,0.00024383,7]
[358628185,1745319055088,-500.0,0.00024383,2]
[358628186,1745319055098,-500.0,0.00024383,2]
[358628187,1745319055108,-500.0,0.00024383,2]
[358628188,1745319055118,-500.0,0.00024383,2]
[358628189,1745319055128,-500.0,0.00024383,2]
[358628190,1745319055138,-500.0,0.00024383,2]
[358628191,1745319055148,-706.5,0.00024383,2]
[358628192,1745319055158,-909.38,0.00024383,2]
[358628193,1745319055168,-808.1,0.00024383,2]
[358628194,1745319055179,-500.0,0.00024383,2]
[358628195,1745319055191,-500.0,0.00024383,2]
[358628196,1745319055201,-727.7,0.00024383,2]
[358628197,1745319055211,-727.7,0.00024383,2]
[358628198,1745319055221,-727.7,0.00024383,2]
[358628199,1745319055231,-727.7,0.00024383,2]
[358628200,1745319055241,-727.7,0.00024383,2]
[358628201,1745319055251,-727.7,0.00024383,2]
[358628202,1745319055262,-727.7,0.00024383,2]
[358628203,1745319055272,-727.7,0.00024383,2]
[358628204,1745319055282,-727.7,0.00024383,2]
[358628205,1745319055291,-727.7,0.00024383,2]
[358628206,1745319055302,-880.34,0.00024383,2]
[358628207,1745319055312,-500.0,0.00024383,2]
[358628208,1745319055323,-1251.51,0.00024383,2]
[358628209,1745319055333,-500.0,0.00024383,2]
[358628210,1745319055343,-729.8,0.00024383,2]
[358628211,1745319055353,-240.98,0.00024383,2]
[358628212,1745319055363,-895.84,0.00024383,2]
[358628213,1745319055372,-500.0,0.00024383,2]
[358628214,1745319055382,-500.0,0.00024383,2]
[358628215,1745319055391,-500.0,0.00024383,2]
[358628216,1745319055400,-500.0,0.00024383,2]
[358628217,1745319055410,-667.67,0.00024383,2]
[358628218,1745319055420,-500.0,0.00024383,2]
[358628219,1745319055430,-1815.99,0.00024383,2]
[358628220,1745319055440,-773.77,0.00024383,2]
[358628221,1745319055450,-500.0,0.00024383,2]
[358628222,1745319055460,-500.0,0.00024383,2]
[358628223,1745319055469,-500.0,0.00024383,2]
[358628224,1745319055479,-4119.16,0.00024383,2]
[358628225,1745319055489,-500.0,0.00024383,2]
[358628226,1745319055499,-686.89,0.00024383,2]
[358628227,1745319055508,-553.58,0.00024383,2]
[358628228,1745319055518,-500.0,0.00024383,2]
[358628229,1745319055528,-500.0,0.00024383,2]
[358628230,1745319055538,-392.24,0.00024383,2]
[358628231,1745319055548,-500.0,0.00024383,2]
[358628232,1745319055558,-500.0,0.00024383,2]
[358628233,1745319055568,-561.78,0.00024383,2]
[358628234,1745319055578,-500.0,0.00024383,2]
[358628235,1745319055588,-3726.56810637,0.00024383,2]
[358628236,1745319055641,-9015.01189363,0.00024383,2]
[358628237,1745319055651,-500.0,0.00024383,2]
[358628238,1745319055660,-862.68,0.00024383,2]
[358628239,1745319055670,-4045.23,0.00024383,2]
[358628240,1745319055680,-643.7,0.00024383,2]
[358628241,1745319055690,-500.0,0.00024383,2]
[358628242,1745319055699,-500.0,0.00024383,2]
[358628243,1745319055710,-756.19,0.00024383,2]
[358628244,1745319055719,-500.0,0.00024383,2]
[358628245,1745319055729,-500.0,0.00024383,2]
[358628246,1745319055739,-500.0,0.00024383,2]
[358628247,1745319055749,-500.0,0.00024383,2]
[358628248,1745319055759,-500.0,0.00024383,2]
[358628249,1745319055768,-800.34,0.00024383,2]
[358628250,1745319055779,-500.0,0.00024383,2]
[358628251,1745319055789,-601.33,0.00024383,2]
[358628252,1745319055799,-2076.86,0.00024383,2]
[358628253,1745319055810,-683.13,0.00024383,2]
[358628254,1745319055819,-500.0,0.00024383,2]
[358628255,1745319055829,-500.0,0.00024383,2]
[358628256,1745319055838,-808.24,0.00024383,2]
[358628257,1745319055847,-575.63,0.00024383,2]
[358628258,1745319055858,-500.0,0.00024383,2]
[358628259,1745319055868,-3747.81,0.00024383,2]
[358628260,1745319055879,-2166.03,0.00024383,2]
[358628261,1745319055890,-639.58,0.00024383,2]
[358628262,1745319055899,-7157.09,0.00024383,2]
[358628263,1745319055909,-320.5991227,0.00024383,2]
[358628264,1745319055919,-518.97,0.00024383,2]
[358628265,1745319055929,-500.0,0.00024383,2]
[358628266,1745319055939,-718.58,0.00024383,2]
[358628267,1745319055948,-753.89,0.00024383,2]
[358628268,1745319055958,-840.59,0.00024383,2]
[358628269,1745319055967,-1092.14,0.00024383,2]
[358628270,1745319055978,-969.61,0.00024383,2]
[358628271,1745319055988,-1418.59,0.00024383,2]
[358628272,1745319055997,-917.88,0.00024383,2]
[358628273,1745319056009,-537.91,0.00024383,2]
[358628274,1745319056018,-770.62,0.00024383,2]
[358628275,1745319056027,-2319.14,0.00024383,2]
[358628276,1745319056037,-733.11,0.00024383,2]
[358628277,1745319056046,-669.19,0.00024383,2]
[358628278,1745319056056,-4855.79,0.00024383,2]
[358628279,1745319056065,-450.62807884,0.00024383,2]
[358628280,1745319056074,-536.9,0.00024383,2]
[358628281,1745319056083,-359.0,0.00024406,3]
[358628282,1745319056093,-359.0,0.00024406,3]
[358628283,1745319056103,-193.2241971,0.00024406,3]
[358628284,1745319056112,-319.0,0.00024406,3]
[358628285,1745319056124,-361.3287945,0.00024411,2]
[358628286,1745319056133,-31308.86244285,0.00024453,2]
[358628287,1745319056149,-89152.40599383,0.00024453,2]
[358628288,1745319056160,-151.0,0.00024453,7]
[358628289,1745319056171,-151.0,0.00024453,7]
[358628290,1745319056183,-1251.934869,0.00024453,2]
[358628291,1745319056194,-1251.934869,0.00024453,2]
[358628292,1745319056205,-151.0,0.00024453,7]
[358628293,1745319056215,-185.462413,0.00024453,2]
[358628294,1745319056228,-185.462413,0.00024453,2]
[358628295,1745319056364,-151.0,0.00024453,7]
[358628296,1745319056376,-151.0,0.00024453,7]
[358628297,1745319056387,-359.0,0.00024596,3]
[358628298,1745319056398,-359.0,0.00024596,3]
[358628299,1745319056408,-359.0,0.00024596,3]
[358628300,1745319056418,-319.0,0.00024596,3]
[358628301,1745319056427,-319.0,0.00024596,3]
[358628302,1745319056437,-359.0,0.00024596,3]
[358628303,1745319056448,-319.0,0.00024596,3]
[358628304,1745319056457,-359.0,0.00024596,3]
[358628305,1745319056467,-319.0,0.00024596,3]
[358628306,1745319056478,-359.0,0.00024596,3]
[358628307,1745319056488,-319.0,0.00024596,3]
[358628308,1745319056498,-359.0,0.00024596,3]
[358628309,1745319056508,-319.0,0.00024596,3]
[358628310,1745319056518,-359.0,0.00024596,3]
[358628311,1745319056528,-319.0,0.00024596,3]
[358628312,1745319056538,-359.0,0.00024596,3]
[358628313,1745319056548,-319.0,0.00024596,3]
[358628314,1745319056558,-359.0,0.00024596,3]
[358628315,1745319056567,-319.0,0.00024596,3]
[358628316,1745319056577,-359.0,0.00024596,3]
[358628317,1745319056586,-319.0,0.00024596,3]
[358628318,1745319056596,-359.0,0.00024596,3]
[358628319,1745319056607,-319.0,0.00024596,3]
[358628320,1745319056618,-359.0,0.00024596,3]
[358628321,1745319056627,-359.0,0.00024596,3]
[358628322,1745319056637,-319.0,0.00024596,3]
[358628323,1745319056647,-359.0,0.00024596,3]
[358628324,1745319056657,-319.0,0.00024596,3]
[358628325,1745319056667,-359.0,0.00024596,3]
[358628326,1745319056677,-319.0,0.00024596,3]
[358628327,1745319056687,-359.0,0.00024596,3]
[358628328,1745319056695,-319.0,0.00024596,3]
[358628329,1745319056705,-359.0,0.00024596,3]
[358628330,1745319056715,-319.0,0.00024596,3]
[358628331,1745319056725,-359.0,0.00024596,3]
[358628332,1745319056735,-359.0,0.00024596,3]
[358628333,1745319056745,-319.0,0.00024596,3]
[358628334,1745319056755,-359.0,0.00024596,3]
[358628335,1745319056765,-319.0,0.00024596,3]
[358628336,1745319056775,-359.0,0.00024596,3]
[358628337,1745319056785,-319.0,0.00024596,3]
[358628338,1745319056794,-433.98620838,0.00024596,3]
[358628339,1745319056804,-370.19998625,0.00024596,3]
[358628340,1745319056814,-154.0,0.00024596,3]
[358628341,1745319056824,-154.0,0.00024596,3]
[358628342,1745319056834,-171.01797495,0.00024596,3]
[358628343,1745319056844,-359.0,0.00024596,3]
[358628344,1745319056853,-372.8087485,0.00024596,3]
[358628345,1745319056863,-160.0,0.00024596,3]
[358628346,1745319056873,-500.0,0.00024657,2]
[358628347,1745319056883,-500.0,0.00024657,2]
[358628348,1745319056893,-500.0,0.00024657,2]
[358628349,1745319056902,-500.0,0.00024657,2]
[358628350,1745319056912,-500.0,0.00024657,2]
[358628351,1745319056921,-500.0,0.00024657,2]
[358628352,1745319056931,-706.5,0.00024657,2]
[358628353,1745319056941,-909.38,0.00024657,2]
[358628354,1745319056950,-808.1,0.00024657,2]
[358628355,1745319056960,-500.0,0.00024657,2]
[358628356,1745319056970,-500.0,0.00024657,2]
[358628357,1745319056980,-727.7,0.00024657,2]
[358628358,1745319056990,-880.34,0.00024657,2]
[358628359,1745319057000,-500.0,0.00024657,2]
[358628360,1745319057010,-1251.51,0.00024657,2]
[358628361,1745319057021,-500.0,0.00024657,2]
[358628362,1745319057040,-500.0,0.00024657,2]
[358628363,1745319057051,-500.0,0.00024657,2]
[358628364,1745319057061,-304.08999878,0.00024657,2]
[358628365,1745319057071,-500.0,0.00024657,2]
[358628366,1745319057082,-729.8,0.00024657,2]
[358628367,1745319057091,-895.84,0.00024657,2]
[358628368,1745319057101,-500.0,0.00024657,2]
[358628369,1745319057111,-500.0,0.00024657,2]
[358628370,1745319057121,-500.0,0.00024657,2]
[358628371,1745319057131,-500.0,0.00024657,2]
[358628372,1745319057140,-667.67,0.00024657,2]
[358628373,1745319057150,-500.0,0.00024657,2]
[358628374,1745319057160,-1815.99,0.00024657,2]
[358628375,1745319057170,-773.77,0.00024657,2]
[358628376,1745319057180,-500.0,0.00024657,2]
[358628377,1745319057192,-500.0,0.00024657,2]
[358628378,1745319057201,-500.0,0.00024657,2]
[358628379,1745319057211,-4119.16,0.00024657,2]
[358628380,1745319057222,-200.0,0.00024657,2]
[358628381,1745319057232,-205.84608865,0.00024657,2]
[358628382,1745319057242,-500.0,0.00024657,2]
[358628383,1745319057253,-686.89,0.00024657,2]
[358628384,1745319057263,-553.58,0.00024657,2]
[358628385,1745319057273,-283.09812064,0.00024657,2]
[358628386,1745319057282,-500.0,0.00024657,2]
[358628387,1745319057292,-500.0,0.00024657,2]
[358628388,1745319057302,-500.0,0.00024657,2]
[358628389,1745319057312,-561.78,0.00024657,2]
[358628390,1745319057322,-500.0,0.00024657,2]
[358628391,1745319057333,-12741.58,0.00024657,2]
[358628392,1745319057342,-500.0,0.00024657,2]
[358628393,1745319057353,-862.68,0.00024657,2]
[358628394,1745319057363,-4045.23,0.00024657,2]
[358628395,1745319057373,-643.7,0.00024657,2]
[358628396,1745319057384,-500.0,0.00024657,2]
[358628397,1745319057397,-500.0,0.00024657,2]
[358628398,1745319057407,-756.19,0.00024657,2]
[358628399,1745319057417,-500.0,0.00024657,2]
[358628400,1745319057427,-500.0,0.00024657,2]
[358628401,1745319057437,-500.0,0.00024657,2]
[358628402,1745319057447,-500.0,0.00024657,2]
[358628403,1745319057457,-500.0,0.00024657,2]
[358628404,1745319057467,-800.34,0.00024657,2]
[358628405,1745319057476,-500.0,0.00024657,2]
[358628406,1745319057486,-601.33,0.00024657,2]
[358628407,1745319057496,-2076.86,0.00024657,2]
[358628408,1745319057506,-683.13,0.00024657,2]
[358628409,1745319057517,-500.0,0.00024657,2]
[358628410,1745319057527,-500.0,0.00024657,2]
[358628411,1745319057538,-808.24,0.00024657,2]
[358628412,1745319057549,-575.63,0.00024657,2]
[358628413,1745319057558,-500.0,0.00024657,2]
[358628414,1745319057569,-3747.81,0.00024657,2]
[358628415,1745319057579,-2166.03,0.00024657,2]
[358628416,1745319057589,-639.58,0.00024657,2]
[358628417,1745319057599,-7157.09,0.00024657,2]
[358628418,1745319057609,-518.97,0.00024657,2]
[358628419,1745319057619,-500.0,0.00024657,2]
[358628420,1745319057628,-718.58,0.00024657,2]
[358628421,1745319057638,-753.89,0.00024657,2]
[358628422,1745319057648,-840.59,0.00024657,2]
[358628423,1745319057658,-1092.14,0.00024657,2]
[358628424,1745319057668,-969.61,0.00024657,2]
[358628425,1745319057677,-1418.59,0.00024657,2]
[358628426,1745319057687,-917.88,0.00024657,2]
[358628427,1745319057696,-537.91,0.00024657,2]
[358628428,1745319057706,-770.62,0.00024657,2]
[358628429,1745319057716,-2319.14,0.00024657,2]
[358628430,1745319057726,-733.11,0.00024657,2]
[358628431,1745319057736,-669.19,0.00024657,2]
[358628432,1745319057746,-4855.79,0.00024657,2]
[358628433,1745319057756,-536.9,0.00024657,2]